Cogmind - Beta 11 X5 @@@ ROGUE MODE // 2021.07.04 @ 02:10:57 Player: Exp. Geonium Core Result: Destroyed by S-27 Virus with Autogun Performance ------------- Evolutions (5) 2500 Regions Visited (15) 3000 Robots Destroyed (111) 555 Value Destroyed (3847) 3847 Prototype IDs (46) 920 Alien Tech Used (2) 400 Bonus (1021) 1021 TOTAL SCORE: 12243 Bonus ------- High Alert Combat Kills 321 Follower Combat Kills 400 Aligned with FarCom 300 Cogmind --------- Core Integrity 0/1000 Matter 264/300 Energy 165/170 System Corruption 12% Temperature Cool (0) Movement Hovering (76) Location -4/Proximity Caves Parts ------- > --- POWER (1) -------- Micro Fission Core > --- PROPULSION (4) --- Combat Gravmag System Combat Gravmag System > --- UTILITY (9) ------ Advanced Power Amplifier Medium Storage Unit Advanced Signal Interpreter Salvage Targeting Computer Advanced Salvage Targeting Computer Advanced Hacking Suite > --- WEAPON (3) ------- Riot Gun Makeshift Sword Makeshift Sword > --- INVENTORY (10) --- Heavy Antimatter Reactor Carbon-fiber Leg Carbon-fiber Leg Carbon-fiber Leg Carbon-fiber Leg Improved Cooling System Advanced Weight Redist. System Peak State ------------ > --- POWER ------------ Heavy Antimatter Reactor > --- PROPULSION ------- Medium Treads Gravmag System Combat Gravmag System Combat Gravmag System > --- UTILITY ---------- Advanced Power Amplifier Medium Storage Unit Advanced Signal Interpreter Salvage Targeting Computer Advanced Salvage Targeting Computer Actuator Array Improved Core Shielding Improved Thermal Shield Advanced Hacking Suite > --- WEAPON ----------- Makeshift Sword Makeshift Sword Lance > --- INVENTORY -------- Micro Fission Core Carbon-fiber Leg Carbon-fiber Leg Carbon-fiber Leg Carbon-fiber Leg Flexi-carbon Leg Advanced Weight Redist. System Transdimensional Reconstructor Riot Gun Dirty Bomb Trap [Rating: 87] Favorites ----------- Power Micro Fission Core Engine Improved Deuterium Engine Power Core Micro Fission Core Reactor Light Antimatter Reactor Propulsion Light Treads Treads Light Treads Leg Advanced Myomer Leg Wheel Wheel Hover Unit Combat Gravmag System Flight Unit VTOL Module Utility Medium Storage Unit Device Improved Heat Sink Storage Medium Storage Unit Processor Advanced Signal Interpreter Hackware Hacking Suite Protection Improved Light Armor Plating Weapon Plasma Cannon Energy Gun Particle Gun Energy Cannon Plasma Cannon Ballistic Gun 8R-AWN's Boregun Launcher Precision Grenade Launcher Slashing Weapon Makeshift Sword Piercing Weapon Lance Build | -11 -10 -10 -10 -9 -8 -8 -7 -7 -7 -6 -5 -5 -5 -5 -4 ------- Run | Scr Mat Min Exi Min Mat Sto Fac Was Fac Fac Fac Upp Upp Zhi Pro Slots Evolved 10 | . . . . . 4 . 2 . . 2 2 . . . . Power . | . . . . . . . . . . . . . . . . Propulsion 2 | . . . . . 1 . 1 . . . . . . . . Utility 7 | . . . . . 2 . 1 . . 2 2 . . . . Weapon 1 | . . . . . 1 . . . . . . . . . . Parts Attached 162 | . 2 . 26 . 10 14 6 12 22 13 32 6 9 7 3 Power 13 | . . . 5 . 1 . . . 2 1 1 . . 3 . Engine 2 | . . . 1 . . . . . 1 . . . . . . Core 6 | . . . 2 . 1 . . . 1 . 1 . . 1 . Reactor 5 | . . . 2 . . . . . . 1 . . . 2 . Propulsion 42 | . 1 . 7 . 2 2 2 5 5 . 13 1 2 2 . Treads 13 | . . . 3 . . . . 1 5 . 2 . 2 . . Leg 20 | . . . 4 . 2 2 2 4 . . 6 . . . . Wheel 3 | . 1 . . . . . . . . . 1 . . 1 . Hover 5 | . . . . . . . . . . . 4 . . 1 . Flight 1 | . . . . . . . . . . . . 1 . . . Utility 67 | . 1 . 9 . 3 5 1 4 10 11 12 2 5 2 2 Device 20 | . . . 1 . . 2 1 . 3 2 5 2 3 1 . Storage 6 | . 1 . 4 . . . . . 1 . . . . . . Processor 8 | . . . 1 . . . . . 2 1 3 . 1 . . Hackware 4 | . . . . . 1 1 . . . . 1 . . 1 . Protection 29 | . . . 3 . 2 2 . 4 4 8 3 . 1 . 2 Artifact . | . . . . . . . . . . . . . . . . Weapon 40 | . . . 5 . 4 7 3 3 5 1 6 3 2 . 1 Energy Gun 5 | . . . 1 . 1 . . . 1 . . . 1 . 1 Energy Cannon 6 | . . . . . . 1 1 2 1 1 . . . . . Ballistic Gun 14 | . . . 4 . 2 5 2 1 . . . . . . . Ballistic Cannon . | . . . . . . . . . . . . . . . . Launcher 4 | . . . . . . . . . 2 . 2 . . . . Special Weapon . | . . . . . . . . . . . . . . . . Impact Weapon . | . . . . . . . . . . . . . . . . Slashing Weapon 8 | . . . . . 1 1 . . 1 . 3 2 . . . Piercing Weapon 3 | . . . . . . . . . . . 1 1 1 . . Special Melee Weapon . | . . . . . . . . . . . . . . . . Unidentified Prototypes 15 | . . . 7 . . 2 . . 1 . 1 . . 3 1 Parts Lost 51 | . . . . . 2 1 3 7 1 1 22 2 6 . 6 Power 2 | . . . . . 1 . . . . . 1 . . . . Propulsion 15 | . . . . . . . 1 3 . . 7 1 2 . 1 Utility 23 | . . . . . 1 1 1 3 . . 10 . 3 . 4 Weapon 11 | . . . . . . . 1 1 1 1 4 1 1 . 1 Highest Loss Streak 12 | . . . . . 1 1 2 6 1 1 12 1 4 . 4 Average Slot Usage (%) 75 | . 85 85 72 85 89 96 91 41 51 88 70 79 89 91 76 Engine 2 | . 14 14 4 . . . . . 3 3 . . . . . Core 3 | . . . 6 14 6 9 7 1 2 . 1 5 5 4 5 Treads 8 | . . . 9 . . . . 3 14 20 6 . 5 8 . Leg 8 | . 26 14 16 28 27 27 27 10 . . 6 . . . . Hover 3 | . . . . . . . . . . . 3 21 13 12 11 Device 5 | . . . . . . 2 7 2 2 7 9 12 13 13 5 Storage 6 | . 14 14 9 14 9 9 7 3 2 6 5 5 5 5 5 Processor 5 | . . . 1 14 9 9 7 3 1 . 9 11 15 17 17 Hackware 1 | . . . . . 8 9 7 3 . . 3 . . 1 5 Protection 8 | . . . 4 . 7 3 3 5 7 28 8 5 6 5 4 Energy Gun 2 | . 14 14 3 . 4 . . . 4 . . . 2 . . Energy Cannon 2 | . . . . . . . 1 . 5 11 2 . . . . Ballistic Gun 5 | . 14 14 13 14 8 17 11 4 . . . . . . . Slashing Weapon 4 | . . . . . 8 8 7 . 3 6 5 9 11 11 11 Naked Turns 2 | . . . . . . . . 2 . . . . . . . Heaviest Build 90 | 13 28 28 58 58 72 77 90 77 77 85 48 37 37 47 34 Greatest Support 113 | 20 20 10 60 60 80 75 95 90 113 113 113 59 48 48 37 Greatest Overweight (x) 2 | . 2 2 2 . . 1 1 1 . . 1 . 1 . . Average Overweight (x) . | . . 2 . . . . . . . . . . . . . Largest Inventory Capacity 35 | . 15 15 35 20 20 20 20 20 10 10 10 10 10 10 10 Average Capacity 11 | . 13 15 13 20 20 20 20 12 6 10 10 10 10 10 10 Most Carried 20 | . 9 9 20 20 19 20 20 19 8 10 10 10 10 10 10 Average Carried 9 | . 7 9 8 20 15 16 18 11 5 8 8 8 8 9 8 Final Capacity 20 | 8 15 15 20 20 20 20 20 5 10 10 10 10 10 10 10 Final Carried 20 | 6 9 9 20 20 14 20 19 5 8 10 9 7 9 10 7 Class Distribution -------------------- 62% | Scavenger-Mutant 30% | Mutant 3% | Scavenger-Gladiator Dominant Class ---------------- Mutant | -10/Materials Mutant | -10/Mines Scavenger-Mutant | -10/Exiles Scavenger-Mutant | -9/Mines Scavenger-Mutant | -8/Materials Scavenger-Mutant | -8/Storage Scavenger-Mutant | -7/Factory Mutant | -7/Waste Scavenger-Mutant | -7/Factory Scavenger-Mutant | -6/Factory Mutant | -5/Factory Scavenger-Mutant | -5/Upper Caves Scavenger-Mutant | -5/Upper Caves Scavenger-Mutant | -5/Zhirov Mutant | -4/Proximity Caves Resources | -11 -10 -10 -10 -9 -8 -8 -7 -7 -7 -6 -5 -5 -5 -5 -4 ----------- Run | Scr Mat Min Exi Min Mat Sto Fac Was Fac Fac Fac Upp Upp Zhi Pro Matter Collected 2370 | 200 19 6 494 . 133 293 65 171 268 160 267 94 113 87 . Remotely . | . . . . . . . . . . . . . . . . Salvage Created 5189 | . 19 24 535 95 292 544 139 232 452 667 1279 87 507 317 . Parts 296 | . 3 4 77 3 21 33 3 4 32 35 48 5 18 10 . Haulers Intercepted . | . . . . . . . . . . . . . . . . Recyclers Shooed 8 | . 1 . . 1 . . . . . 2 4 . . . . Parts Field Recycled . | . . . . . . . . . . . . . . . . Retrieved Matter . | . . . . . . . . . . . . . . . . Parts Self-Destructed 34 | . . . . . . . . . . . . 13 15 6 . Prevented 9 | . . . . . . . . . . . . . 9 . . Kills | -11 -10 -10 -10 -9 -8 -8 -7 -7 -7 -6 -5 -5 -5 -5 -4 ------- Run | Scr Mat Min Exi Min Mat Sto Fac Was Fac Fac Fac Upp Upp Zhi Pro Combat Hostiles Destroyed 95 | . . . 7 5 8 13 4 1 12 10 26 2 7 . . Melee 42 | . . . . . . . . . 6 6 23 2 5 . . Guns 33 | . . . 7 5 8 10 2 . . . . . 1 . . Cannons 7 | . . . . . . 1 . 1 2 3 . . . . . AOE 10 | . . . . . . 2 . . 4 . 3 . 1 . . Classes Destroyed 18 | . 1 1 3 1 3 2 . 1 2 1 1 2 . . . Worker 4 | . . . . . . . . . 1 . 3 . . . . Builder 4 | . 1 . . . . 1 . . 2 . . . . . . Tunneler 1 | . . 1 . . . . . . . . . . . . . Recycler 3 | . . . . . . 1 . . . 1 1 . . . . Minesweeper 1 | . . . . . . . . . . . . 1 . . . Operator 1 | . . . . . . . . . . . 1 . . . . Turret 1 | . . . 1 . . . . . . . . . . . . Watcher 1 | . . . . . . 1 . . . . . . . . . Swarmer 28 | . . . . . 4 6 . . 6 2 9 1 . . . Grunt 32 | . . . . . 3 3 4 . 1 5 12 . 4 . . Sentry 10 | . . . . . 1 4 . . 3 1 1 . . . . Demolisher 1 | . . . . 1 . . . . . . . . . . . Hunter 3 | . . . . . . . . . . 1 2 . . . . Programmer 7 | . . . . . . . . . 2 1 2 . 2 . . Compactor 1 | . . . . . . . . 1 . . . . . . . Zionite 8 | . . . 8 . . . . . . . . . . . . Master Thief 1 | . . . . . . . . . . . . 1 . . . Assembled 10 | . . . 6 4 . . . . . . . . . . . Thug 1 | . . . . . . . . . . . . . 1 . . Best Kill Streak 8 | . 1 1 6 5 8 6 2 1 6 3 5 1 3 . . Combat Bots Only 8 | . . . 6 5 8 5 2 1 4 2 5 1 3 . . Max Kills in Single Turn 6 | . 1 1 1 1 2 6 1 1 2 1 2 1 1 . . Gunslinging . | . . . . . . . . . . . . . . . . Exploded 2 | . . . . . . 2 . . 2 . 2 . 1 . . Melee 1 | . . . . . . . . . 1 1 1 1 1 . . Uniques/NPCs Destroyed 4 | . . . 4 . . . . . . . . . . . . 8R-AWN (-10/Exiles) EX-BIN (-10/Exiles) EX-DEC (-10/Exiles) EX-HEX (-10/Exiles) Combat | -11 -10 -10 -10 -9 -8 -8 -7 -7 -7 -6 -5 -5 -5 -5 -4 -------- Run | Scr Mat Min Exi Min Mat Sto Fac Was Fac Fac Fac Upp Upp Zhi Pro Damage Taken 10168 | . 46 . 436 144 589 334 347 1177 1539 797 3023 253 991 . 492 Core 1674 | . . . 40 36 28 70 . 329 86 88 752 19 70 . 156 Absorbed by Shields 266 | . . . . . . . . . . . 266 . . . . Core Remaining (%) 76 | 100 . . . 69 . 82 . . 40 89 . . . . . Volleys Fired 161 | . 4 1 42 . 10 26 12 13 17 22 1 . 12 . 1 Largest 2 | . 2 2 1 . 2 2 2 1 1 2 1 . 1 . 1 Hottest 160 | . 60 60 40 . 92 100 100 100 80 160 36 . 60 . 50 Shots Fired 294 | . 8 2 97 12 36 51 15 13 17 29 1 . 12 . 1 Gun 242 | . 8 2 97 12 36 50 12 12 . . . . 12 . 1 Cannon 47 | . . . . . . 1 3 1 13 29 . . . . . Launcher 5 | . . . . . . . . . 4 . 1 . . . . Special . | . . . . . . . . . . . . . . . . Kinetic 219 | . 4 1 94 12 34 50 12 12 . . . . . . . Thermal 49 | . . . . . 2 1 3 1 13 29 . . . . . Explosive 5 | . . . . . . . . . 4 . 1 . . . . Electromagnetic 21 | . 4 1 3 . . . . . . . . . 12 . 1 Robot Hit Streak 20 | . 5 7 19 5 7 20 8 6 9 8 . . 8 . 2 Robot Miss Streak 5 | . 3 . 5 2 2 2 2 3 2 1 . . 4 . 1 Penetration Max 1 | . . . 1 . . . . 1 . . . . . . . Secondary Targets 1 | . . . . . . . 1 . . . . . . . . Max Gunslinging Chain 1 | . . . . . . . 1 . . . . . . . . Autonomous 92 | . . . 55 12 25 . . . . . . . . . . Shots Hit Robots 368 | . 5 2 67 8 27 34 10 8 23 34 90 13 35 7 5 Core Hits 204 | . 2 1 34 7 11 23 5 2 23 20 43 4 21 5 3 Critical Kills 8 | . . . 4 . 1 . 2 . . 1 . . . . . Critical Parts Destroyed 9 | . . . 7 . 2 . . . . . . . . . . Critical Strikes 28 | . . . 11 . 3 . 2 4 . 1 6 . . . 1 Meltdown 3 | . . . . . . . 2 . . 1 . . . . . Destroy 18 | . . . 11 . 3 . . 4 . . . . . . . Sever 6 | . . . . . . . . . . . 6 . . . . Puncture 1 | . . . . . . . . . . . . . . . 1 Melee Attacks 249 | . . . . . 4 5 . . 21 17 127 20 40 8 7 Impact . | . . . . . . . . . . . . . . . . Slashing 236 | . . . . . 4 5 . . 21 17 126 15 37 7 4 Piercing 13 | . . . . . . . . . . . 1 5 3 1 3 Sneak Attacks 8 | . . . . . . . . . . 1 5 2 . . . Combat Hostiles . | . . . . . . . . . . . . . . . . Follow-up Attacks 17 | . . . . . . . . . . . . 7 7 1 2 Damage Inflicted 14444 | . 56 19 1746 294 726 915 651 312 1321 992 4513 758 1177 803 161 Guns 3889 | . 56 19 1746 275 726 532 153 167 . . . . 204 . 11 Cannons 1214 | . . . . . . 131 173 81 267 562 . . . . . Explosions 1939 | . . . . . . 252 325 64 570 . 669 . 59 . . Melee 7269 | . . . . . . . . . 370 430 3844 758 914 803 150 Ramming 133 | . . . . 19 . . . . 114 . . . . . . Kinetic 3587 | . 18 7 1746 275 689 532 153 167 . . . . . . . Thermal 1951 | . . . . . 37 383 498 145 267 562 . . 59 . . Explosive 1239 | . . . . . . . . . 570 . 669 . . . . Electromagnetic 265 | . 38 12 . . . . . . . . . . 204 . 11 Impact . | . . . . . . . . . . . . . . . . Slashing 6948 | . . . . . . . . . 370 430 3844 578 812 803 111 Piercing 321 | . . . . . . . . . . . . 180 102 . 39 Highest Corruption 12 | . . . . . . . . 4 5 . 9 9 12 12 12 Average Corruption 7 | . . . . . . . . 4 4 . 3 9 10 12 12 Corruption Purged . | . . . . . . . . . . . . . . . . Effects 85 | . . . . . . . . 3 29 . 5 12 19 7 10 Message Errors 20 | . . . . . . . . . 7 . 2 2 5 2 2 Matter Fused 21 | . . . . . . . . . 8 . 1 3 5 1 3 Heat Flow Errors 10 | . . . . . . . . . 4 . 1 1 3 . 1 Energy Discharges 16 | . . . . . . . . 1 6 . 1 2 2 1 3 Parts Rejected 3 | . . . . . . . . 1 1 . . . . . 1 Data Loss (minor) 10 | . . . . . . . . 1 3 . . 3 1 2 . Data Loss (major) 4 | . . . . . . . . . . . . 1 2 1 . Misdirections 1 | . . . . . . . . . . . . . 1 . . Overload Shots . | . . . . . . . . . . . . . . . . Overflow Damage 972 | . . . . . . 10 53 . 16 53 429 185 79 147 . Projectiles 30 | . . . . . . . 30 . . . . . . . . Explosions 42 | . . . . . . 10 23 . 9 . . . . . . Melee 900 | . . . . . . . . . 7 53 429 185 79 147 . Knockbacks . | . . . . . . . . . . . . . . . . Impact . | . . . . . . . . . . . . . . . . Kinetic . | . . . . . . . . . . . . . . . . Secondary . | . . . . . . . . . . . . . . . . Self-Inflicted Damage 377 | . . . . . . . . 69 . . 308 . . . . Shots 4 | . . . . . . . . 1 . . 3 . . . . Rammed 21 | . . . . . . . . . 21 . . . . . . Targets Rammed 24 | . . . . 2 . . . . 22 . . . . . . Kicked 2 | . . . . 2 . . . . . . . . . . . Crushed 1 | . . . . . . . . . 1 . . . . . . Highest Temperature 377 | . 20 20 . . 75 66 144 11 377 135 138 198 278 . 236 Average Temperature 80 | . 15 15 . . 30 22 56 6 130 43 82 100 84 . 107 Received Heat Transfer 2121 | . . . . . 216 126 198 . 447 150 552 54 297 . 81 Effects 4 | . . . . . . . . . 4 . . . . . . Interference 2 | . . . . . . . . . 2 . . . . . . Short Circuit 1 | . . . . . . . . . 1 . . . . . . Damage (minor) 1 | . . . . . . . . . 1 . . . . . . Siege Activations . | . . . . . . . . . . . . . . . . Robots Corrupted . | . . . . . . . . . . . . . . . . Combat Hostiles . | . . . . . . . . . . . . . . . . Parts Fried . | . . . . . . . . . . . . . . . . Impact Corruptions . | . . . . . . . . . . . . . . . . Robots Melted 4 | . . . . . . . 2 . . 2 . . . . . Combat Hostiles 3 | . . . . . . . 2 . . 1 . . . . . Parts Melted 14 | . . . . . . 3 1 . 1 7 . 2 . . . Heat Transferred 2714 | . . . . . 74 320 560 160 500 1100 . . . . . Parts Sabotaged . | . . . . . . . . . . . . . . . . Parts Stolen 5 | . . . . . . . . . . . . 2 3 . . Parts Stripped . | . . . . . . . . . . . . . . . . Power Chain Reactions 1 | . . . . . . . . . . . . . 1 . . Missiles Intercepted . | . . . . . . . . . . . . . . . . Alert | -11 -10 -10 -10 -9 -8 -8 -7 -7 -7 -6 -5 -5 -5 -5 -4 ------- Run | Scr Mat Min Exi Min Mat Sto Fac Was Fac Fac Fac Upp Upp Zhi Pro Peak Influence 1076 | . 20 12 . 20 310 615 290 113 327 257 1076 . . . . Initial 188 | . . 7 . . 7 130 188 98 67 137 65 . . . . Average 201 | . 1 7 . 9 180 336 243 89 206 112 350 . . . . Maximum Alert Level 3 | . . . . . 1 2 1 . 1 1 3 . . . . Low Security (%) 58 | . 100 100 . 100 33 24 27 100 35 88 47 . . . . Level 1 31 | . . . . . 66 34 72 . 64 11 27 . . . . Level 2 4 | . . . . . . 41 . . . . 2 . . . . Level 3 5 | . . . . . . . . . . . 23 . . . . Level 4 . | . . . . . . . . . . . . . . . . Level 5 . | . . . . . . . . . . . . . . . . High Security . | . . . . . . . . . . . . . . . . Max Security . | . . . . . . . . . . . . . . . . Squads Dispatched 17 | . . . . . 1 1 1 . 5 3 6 . . . . Investigation 2 | . . . . . . 1 . . . . 1 . . . . Extermination 4 | . . . . . . . . . 2 1 1 . . . . Reinforcement 10 | . . . . . 1 . 1 . 3 2 3 . . . . Assault 1 | . . . . . . . . . . . 1 . . . . Garrison . | . . . . . . . . . . . . . . . . Intercept . | . . . . . . . . . . . . . . . . Construction Impeded 2 | . . . . . . . . . 1 . 1 . . . . Haulers Reinforced . | . . . . . . . . . . . . . . . . Cargo Convoy Interrupts 1 | . . . . . . . . . . . 1 . . . . Stealth | -11 -10 -10 -10 -9 -8 -8 -7 -7 -7 -6 -5 -5 -5 -5 -4 --------- Run | Scr Mat Min Exi Min Mat Sto Fac Was Fac Fac Fac Upp Upp Zhi Pro Distress Signals 6 | . 1 . . . . . . . 1 . 4 . . . . Communications Jammed . | . . . . . . . . . . . . . . . . Distress Signals . | . . . . . . . . . . . . . . . . Times Spotted 226 | . 2 . 48 11 15 17 7 6 25 17 39 11 19 . 9 Peak Tracking Total 9 | . 4 . 9 6 7 5 4 5 5 4 6 4 5 . 5 Tactical Retreats 25 | . 1 . 11 1 1 2 . . . 2 5 . 2 . . Traps | -11 -10 -10 -10 -9 -8 -8 -7 -7 -7 -6 -5 -5 -5 -5 -4 ------- Run | Scr Mat Min Exi Min Mat Sto Fac Was Fac Fac Fac Upp Upp Zhi Pro Traps Triggered 2 | . . . . . . . 1 . . . 1 . . . . Indirectly . | . . . . . . . . . . . . . . . . Trap Hack Attempts . | . . . . . . . . . . . . . . . . Triggered . | . . . . . . . . . . . . . . . . Disarmed . | . . . . . . . . . . . . . . . . Reprogrammed . | . . . . . . . . . . . . . . . . Reused 2 | . . . . . . . . . . . . . 1 . 1 Traps Extracted . | . . . . . . . . . . . . . . . . Installed 2 | . . . . . . . . . . . . . 1 . 1 Triggered 4 | . . . . . . . . . . . 1 1 1 . 1 Exploded 3 | . . . 3 . . . . . . . . . . . . Machines | -11 -10 -10 -10 -9 -8 -8 -7 -7 -7 -6 -5 -5 -5 -5 -4 ---------- Run | Scr Mat Min Exi Min Mat Sto Fac Was Fac Fac Fac Upp Upp Zhi Pro Machines Disabled 22 | . . . 13 . 1 2 . . 1 . 4 1 . . . Max in Single Turn 4 | . . . 1 . 1 1 . . 1 . 4 1 . . . Machines Sabotaged . | . . . . . . . . . . . . . . . . Garrisons Compromised 1 | . . . . . . . . . . . 1 . . . . Overloaded Fab Kills . | . . . . . . . . . . . . . . . . Fab Network Shutdowns . | . . . . . . . . . . . . . . . . Hacking | -11 -10 -10 -10 -9 -8 -8 -7 -7 -7 -6 -5 -5 -5 -5 -4 --------- Run | Scr Mat Min Exi Min Mat Sto Fac Was Fac Fac Fac Upp Upp Zhi Pro Machines Accessed 28 | . . . 1 . 2 2 . . 7 2 5 . . 9 . Terminals 15 | . . . . . 2 2 . . 6 1 4 . . . . Fabricators 2 | . . . . . . . . . . 1 1 . . . . Repair Stations 1 | . . . . . . . . . 1 . . . . . . Recycling Units . | . . . . . . . . . . . . . . . . Scanalyzers . | . . . . . . . . . . . . . . . . Garrison Access . | . . . . . . . . . . . . . . . . Total Hacks 92 | . . . 1 . 11 8 . . 18 5 18 . . 31 . Successful 63 | . . . 1 . 5 3 . . 10 2 11 . . 31 . Failed 29 | . . . . . 6 5 . . 8 3 7 . . . . Catastrophic 6 | . . . . . 1 . . . 3 2 . . . . . Database Lockouts . | . . . . . . . . . . . . . . . . Manual 36 | . . . 1 . 10 4 . . 10 3 8 . . . . Terminals 49 | . . . . . 11 8 . . 14 1 15 . . . . Fabricators 7 | . . . . . . . . . . 4 3 . . . . Repair Stations 4 | . . . . . . . . . 4 . . . . . . Recycling Units . | . . . . . . . . . . . . . . . . Scanalyzers . | . . . . . . . . . . . . . . . . Garrison Access . | . . . . . . . . . . . . . . . . Terminal Hacks 48 | . . . 1 . 4 1 . . 5 . 6 . . 31 . Record 19 | . . . . . . . . . . . . . . 19 . Part Schematic 6 | . . . . . . . . . 1 . 1 . . 4 . Robot Analysis 4 | . . . . . . . . . . . . . . 4 . Prototype ID Bank 4 | . . . . . . . . . . . . . . 4 . Open Door 1 | . . . . . . 1 . . . . . . . . . Level Access Points 2 | . . . . . 1 . . . 1 . . . . . . Branch Access Points 2 | . . . . . 1 . . . 1 . . . . . . Emergency Access Points 1 | . . . . . . . . . 1 . . . . . . Machine Index 1 | . . . . . . . . . . . 1 . . . . Terminal Index 2 | . . . . . 1 . . . 1 . . . . . . Unreport Threat 1 | . . . . . . . . . . . 1 . . . . Maintenance Status 1 | . . . . . . . . . . . 1 . . . . Registered Components 1 | . . . . . 1 . . . . . . . . . . Zone Layout 2 | . . . . . . . . . . . 2 . . . . EX-Prototype ID Bank 1 | . . . 1 . . . . . . . . . . . . Fabricator Hacks 4 | . . . . . . . . . . 2 2 . . . . Load Schematic 2 | . . . . . . . . . . 1 1 . . . . Build 2 | . . . . . . . . . . 1 1 . . . . Repair Station Hacks 2 | . . . . . . . . . 2 . . . . . . Scan Component 1 | . . . . . . . . . 1 . . . . . . Repair 1 | . . . . . . . . . 1 . . . . . . Recycling Unit Hacks . | . . . . . . . . . . . . . . . . Scanalyzer . | . . . . . . . . . . . . . . . . Garrison Access Hacks . | . . . . . . . . . . . . . . . . Unauthorized Hacks 9 | . . . . . 1 2 . . 3 . 3 . . . . Terminals 9 | . . . . . 1 2 . . 3 . 3 . . . . Track 1 | . . . . . . 1 . . . . . . . . . Botnet 5 | . . . . . 1 . . . 2 . 2 . . . . Disrupt 1 | . . . . . . 1 . . . . . . . . . Operators 2 | . . . . . . . . . 1 . 1 . . . . Fabricators . | . . . . . . . . . . . . . . . . Repair Stations . | . . . . . . . . . . . . . . . . Recycling Units . | . . . . . . . . . . . . . . . . Scanalyzers . | . . . . . . . . . . . . . . . . Garrison Access . | . . . . . . . . . . . . . . . . Data Cores Recovered 1 | . . . . . . . . . . . 1 . . . . Used 1 | . . . . . . . . . . . 1 . . . . Hacking Detections 18 | . . . . . 2 2 . . 7 2 5 . . . . Full Trace Events 2 | . . . . . . 1 . . . . 1 . . . . Feedback Events . | . . . . . . . . . . . . . . . . Feedback Blocked . | . . . . . . . . . . . . . . . . Robot Schematics Acquired . | . . . . . . . . . . . . . . . . Robots Built . | . . . . . . . . . . . . . . . . Matter . | . . . . . . . . . . . . . . . . Time . | . . . . . . . . . . . . . . . . Total Robot Build Rating . | . . . . . . . . . . . . . . . . Part Schematics Acquired 6 | . . . . . . . . . 1 . 1 . . 4 . Parts Built 3 | . . . . . . . . . . 2 1 . . . . Matter 380 | . . . . . . . . . . 146 234 . . . . Time 190 | . . . . . . . . . . 73 117 . . . . Total Part Build Rating 13 | . . . . . . . . . . 6 7 . . . . Parts Repaired 1 | . . . . . . . . . 1 . . . . . . Time 56 | . . . . . . . . . 56 . . . . . . Parts Recycled . | . . . . . . . . . . . . . . . . Recycled Matter . | . . . . . . . . . . . . . . . . Retrieved Matter . | . . . . . . . . . . . . . . . . Retrieved Components . | . . . . . . . . . . . . . . . . Parts Scanalyzed . | . . . . . . . . . . . . . . . . Part Schematics Acquired . | . . . . . . . . . . . . . . . . Parts Damaged . | . . . . . . . . . . . . . . . . Bothacking | -11 -10 -10 -10 -9 -8 -8 -7 -7 -7 -6 -5 -5 -5 -5 -4 ------------ Run | Scr Mat Min Exi Min Mat Sto Fac Was Fac Fac Fac Upp Upp Zhi Pro Used RIF Installer . | . . . . . . . . . . . . . . . . Robots Hacked . | . . . . . . . . . . . . . . . . Non-combat . | . . . . . . . . . . . . . . . . Combat . | . . . . . . . . . . . . . . . . Robot Hacks Applied . | . . . . . . . . . . . . . . . . Relay Couplers Released . | . . . . . . . . . . . . . . . . Robots Rewired 1 | . . . . . . . . . . . . . 1 . . Allies Hacked 3 | . . . . . . . . . . . . . 3 . . Hacks Repelled . | . . . . . . . . . . . . . . . . Allies | -11 -10 -10 -10 -9 -8 -8 -7 -7 -7 -6 -5 -5 -5 -5 -4 -------- Run | Scr Mat Min Exi Min Mat Sto Fac Was Fac Fac Fac Upp Upp Zhi Pro Total Allies 25 | . . 3 . . . . . . . . 21 . 1 . . Largest Group 14 | . . 3 3 . . . . . . . 14 3 2 . . Highest-Rated Group 608 | . . 40 40 . . . . . . . 608 93 60 . . Highest-Rated Ally 74 | . . 16 16 . . . . . . . 74 31 31 . . Total Orders 6 | . . . 5 . . . . . . . . . 1 . . STAY 3 | . . . 3 . . . . . . . . . . . . FOLLOW 2 | . . . 2 . . . . . . . . . . . . EXPLORE 1 | . . . . . . . . . . . . . 1 . . Ally Attacks 178 | . . . 6 . . . . . . . 107 41 24 . . Total Damage 3199 | . . . 17 . . . . . . . 2401 521 260 . . Kills 32 | . . . . . . . . . . . 24 7 1 . . Allies Corrupted 1 | . . . . . . . . . . . . . 1 . . Allies Melted . | . . . . . . . . . . . . . . . . Intel | -11 -10 -10 -10 -9 -8 -8 -7 -7 -7 -6 -5 -5 -5 -5 -4 ------- Run | Scr Mat Min Exi Min Mat Sto Fac Was Fac Fac Fac Upp Upp Zhi Pro Robot Analysis Total 4 | . . . . . . . . . . . . . . 4 . Derelict Logs Recovered 6 | . . . . 1 . . . . . . . 1 3 . 1 Drone Launches 3 | . . . . . . . . . . . . . 3 . . Drone Recoveries 3 | . . . . . . . . . . . . . 3 . . Exploration | -11 -10 -10 -10 -9 -8 -8 -7 -7 -7 -6 -5 -5 -5 -5 -4 ------------- Run | Scr Mat Min Exi Min Mat Sto Fac Was Fac Fac Fac Upp Upp Zhi Pro Turns Passed 7912 | . 213 223 1579 101 193 451 127 213 1181 1127 1097 296 577 273 261 Spaces Moved 4675 | 1 116 178 1034 83 108 229 68 103 578 538 512 331 419 189 188 Core 4 | . . . . . . . . 4 . . . . . . . Treads 1734 | . . . 150 . . . . 55 578 538 154 . 138 121 . Legs 1499 | 1 100 . 682 83 108 229 68 44 . . 184 . . . . Wheels 396 | . 16 178 202 . . . . . . . . . . . . Hover 1042 | . . . . . . . . . . . 174 331 281 68 188 Flight . | . . . . . . . . . . . . . . . . Fastest Speed 50 | 120 110 110 110 120 120 120 125 50 160 160 58 58 65 65 65 Average Speed 126 | 120 164 110 133 120 122 128 129 141 160 160 121 59 98 129 75 Slowest Speed 260 | 120 200 110 200 120 126 200 206 205 160 160 260 65 165 165 76 Overloaded Moves . | . . . . . . . . . . . . . . . . Propulsion Burnouts . | . . . . . . . . . . . . . . . . Robots Hopped . | . . . . . . . . . . . . . . . . Cave-ins Triggered 1 | . . . . . . . . . . . 1 . . . . Teleports 1 | . . . . . . . . . . . . . . . 1 Exploration Rate (%) 37 | 1 15 47 87 37 17 40 3 78 22 23 18 47 71 62 29 Regions Visited 15 Branch Regions 8 Pre-discovered Areas 5 | . . . . . . . . . . . . . 1 3 1 Known Exits Taken 8 | . . . . . 1 1 . . 1 1 1 1 1 1 . Unknown Exits Taken 5 | 1 1 1 1 1 . . . . . . . . . . . Scrap Searched 6 | . . . . 1 . . . . . . . 2 3 . . Spaces Dug 24 | . . . . . 2 3 . . 3 4 12 . . . . Terrain Destroyed 164 | . . . 18 7 22 15 20 11 16 4 41 . 10 . . Melee 24 | . . . . . 2 3 . . 3 4 12 . . . . Projectile 46 | . . . 17 7 20 . 1 1 . . . . . . . AOE 93 | . . . . . . 12 19 10 13 . 29 . 10 . . Terrain Rammed . | . . . . . . . . . . . . . . . . Walls Destroyed . | . . . . . . . . . . . . . . . . Machines Disabled . | . . . . . . . . . . . . . . . . Actions | -11 -10 -10 -10 -9 -8 -8 -7 -7 -7 -6 -5 -5 -5 -5 -4 --------- Run | Scr Mat Min Exi Min Mat Sto Fac Was Fac Fac Fac Upp Upp Zhi Pro Total 6102 | . 132 203 1203 84 154 338 91 156 773 749 769 404 535 210 301 Wait 652 | . 3 25 34 . 15 51 . 19 90 150 69 46 49 . 101 Move 4661 | . 115 177 1033 82 107 228 68 102 577 537 511 330 418 188 188 Hop . | . . . . . . . . . . . . . . . . Pick Up 93 | . 4 . 33 . 2 6 2 1 11 1 15 8 8 2 . Fast Attach 88 | . 2 . 16 . 2 6 2 6 11 10 16 2 6 7 2 Attach 63 | . . . 9 . 8 4 4 5 8 3 14 3 3 . 2 Detach 20 | . 1 . 1 . 2 3 1 3 2 3 3 . 1 . . Swap 13 | . . . 1 . . 4 . 1 3 . 2 1 . 1 . Drop 94 | . 3 . 34 . 4 5 2 6 11 6 12 2 2 6 1 Fire 161 | . 4 1 42 . 10 26 12 13 17 22 1 . 12 . 1 Melee 228 | . . . . . 4 5 . . 21 17 126 12 32 6 5 Ram . | . . . . . . . . . . . . . . . . Kick 2 | . . . . 2 . . . . . . . . . . . Crush 22 | . . . . . . . . . 22 . . . . . . Escape Stasis . | . . . . . . . . . . . . . . . . Rewire 3 | . . . . . . . . . . . . . 3 . . Trap 2 | . . . . . . . . . . . . . 1 . 1 Miscellaneous . | . . . . . . . . . . . . . . . . Route ------- -11/Scrapyard -10/Materials -10/Mines (discovered 2 exits: [*Mat] / *Exi) -10/Exiles -9/Mines -8/Materials (discovered 5 exits: Fac x3 / *Sto x2) -8/Storage -7/Factory -7/Waste -7/Factory (discovered 6 exits: *Fac x4 / *Low x2) -6/Factory (discovered 2 exits: *Fac x2) -5/Factory -5/Upper Caves -5/Upper Caves (discovered 2 exits: *Fac / *Zhi) -5/Zhirov -4/Proximity Caves History --------- Turn | Location | Event 1 | -11/Scrapyard | Discovered new exit (range 0) 1 | -11/Scrapyard | Entered Materials 22 | -10/Materials | Discovered new exit (range 12) 214 | -10/Materials | Entered Mines 228 | -10/Mines | Discovered new exit (range 6) 241 | -10/Mines | Assisted by bots powering up and referring to "LRC-V3" 306 | -10/Mines | Build established: Mutant 422 | -10/Mines | Deemed a non-threat by the Exiles lab entrance 423 | -10/Mines | Discovered new exit (range 5) 437 | -10/Mines | Entered Exiles 437 | -10/Exiles | Accompanied by 3 allies 473 | -10/Exiles | Met 8R-AWN 491 | -10/Exiles | Met EX-HEX 524 | -10/Exiles | Met EX-BIN 544 | -10/Exiles | Aligned with FarCom system 545 | -10/Exiles | Given EX-Vault access code 572 | -10/Exiles | Opened EX-Vault 578 | -10/Exiles | Found YOLO Cannon 586 | -10/Exiles | Found AWS/Gauss 609 | -10/Exiles | Warned to stay clear of 0b10 Research branches 692 | -10/Exiles | Met EX-DEC 823 | -10/Exiles | Attacked by the Exiles 887 | -10/Exiles | Discovered new exit (range 10) 954 | -10/Exiles | Destroyed 8R-AWN 959 | -10/Exiles | Found Prototype Protection 959 | -10/Exiles | Identified 8R-AWN's Armor/EX 982 | -10/Exiles | Found Prototype Ballistic Gun 982 | -10/Exiles | Identified 8R-AWN's Boregun 988 | -10/Exiles | Found Prototype Device 988 | -10/Exiles | Identified AS-neutralizer No. 17b 1126 | -10/Exiles | Destroyed EX-BIN 1138 | -10/Exiles | Destroyed EX-DEC 1170 | -10/Exiles | Destroyed EX-HEX 1490 | -10/Exiles | Build established: Scavenger-Mutant 1630 | -10/Exiles | Found Trap Reconfigurator 2016 | -10/Exiles | Stole three prototypes: AWS/Gauss, Trap Reconfigurator, YOLO Cannon 2016 | -10/Exiles | Entered Mines 2043 | -9/Mines | Assembled infested the area 2048 | -9/Mines | Assisted by a Guerilla fighting off Assembled 2109 | -9/Mines | Discovered new exit (range 8) 2117 | -9/Mines | Entered Materials 2117 | -8/Materials | Evolved 4 slots: Propulsion x1, Utility x2, Weapon x1 2118 | -8/Materials | Identified exit to Storage 2232 | -8/Materials | Destroyed 8 combat bots 2261 | -8/Materials | Identified exit to Factory 2310 | -8/Materials | Entered Storage 2698 | -8/Storage | Discovered exit to Factory (range 15) 2761 | -8/Storage | Entered Factory 2761 | -7/Factory | Evolved 2 slots: Propulsion x1, Utility x1 2888 | -7/Factory | Sucked down chute 2888 | -7/Factory | Entered Waste 2900 | -7/Waste | Spotted C-40 Crusher 2903 | -7/Waste | EMP discharged 2916 | -7/Waste | Spotted C-40 Crusher 2925 | -7/Waste | Crushed by Compactor (1 part destroyed, 2 dropped) 2969 | -7/Waste | Crushed by Compactor (1 part destroyed, 2 dropped) 2978 | -7/Waste | Crushed by Compactor (1 part destroyed, 2 dropped) 2981 | -7/Waste | Crushed by Compactor (1 part destroyed) 2982 | -7/Waste | Crushed by Compactor (1 part destroyed) 2990 | -7/Waste | Destroyed C-40 Crusher 2990 | -7/Waste | Spotted C-40 Crusher 2993 | -7/Waste | Crushed by Compactor (0 parts destroyed, 1 dropped) 2996 | -7/Waste | Crushed by Compactor (1 part destroyed) 2999 | -7/Waste | Spotted C-40 Crusher 3002 | -7/Waste | Found Damper Plating 3003 | -7/Waste | EMP discharged 3027 | -7/Waste | Spotted C-40 Crusher 3040 | -7/Waste | Lost 6 parts (2n3u1w) 3069 | -7/Waste | Spotted C-40 Crusher 3085 | -7/Waste | Discovered new exit (range 11) 3101 | -7/Waste | Entered Factory 3284 | -7/Factory | Build established: Mutant 3286 | -7/Factory | Identified exit to Lower Caves 3560 | -7/Factory | Repaired Hvy. Treads 3577 | -7/Factory | Core integrity fell below 50% 3870 | -7/Factory | Build established: Scavenger-Mutant 3896 | -7/Factory | Identified exit to Factory 4282 | -7/Factory | Entered another Factory area 4282 | -6/Factory | Evolved 2 slots: Utility x2 4525 | -6/Factory | Discovered new exit (range 16) 4796 | -6/Factory | Fabricated Insulated Plating (x2) 5267 | -6/Factory | Discovered new exit (range 8) 5344 | -6/Factory | Identified exit to Factory 5409 | -6/Factory | Entered another Factory area 5409 | -5/Factory | Evolved 2 slots: Utility x2 6058 | -5/Factory | Lost 12 parts (1p2n6u3w) 6060 | -5/Factory | Fabricated Force Lance (x1) 6219 | -5/Factory | Core integrity fell below 50% 6230 | -5/Factory | Cargo convoy interrupted 6309 | -5/Factory | Build established: Mutant 6309 | -5/Factory | First assault squad dispatched 6323 | -5/Factory | Allied Derelicts emerged from ambush trap array 6332 | -5/Factory | Lost 3 parts (1n1u1w) 6456 | -5/Factory | Crushed by falling debris 6481 | -5/Factory | Discovered new exit (range 16) 6489 | -5/Factory | Identified exit to Upper Caves 6506 | -5/Factory | Entered Upper Caves 6506 | -5/Upper Caves | Accompanied by 3 allies 6506 | -5/Upper Caves | Spotted IZ-4PF(f) 6506 | -5/Upper Caves | Spotted HP-XU4(f) 6507 | -5/Upper Caves | Encountered a Master Thief 6507 | -5/Upper Caves | Encountered a Master Thief 6511 | -5/Upper Caves | Lance stolen by Master Thief 6518 | -5/Upper Caves | 8R-AWN's Armor/EX stolen by Master Thief 6518 | -5/Upper Caves | Destroyed HP-XU4(f) 6700 | -5/Upper Caves | Attracted the attention of an 0b10 checkpoint 6770 | -5/Upper Caves | Learned 4 Factory zone layouts 6792 | -5/Upper Caves | Discovered new exit (range 5) 6794 | -5/Upper Caves | Identified exit to Upper Caves 6802 | -5/Upper Caves | Entered another Upper Caves area 6802 | -5/Upper Caves | Accompanied by 1 ally 6802 | -5/Upper Caves | Spotted UT-SQV(f) 6802 | -5/Upper Caves | Spotted 8C-TPR(f) 6803 | -5/Upper Caves | Encountered a Master Thief 6803 | -5/Upper Caves | Encountered a Master Thief 6803 | -5/Upper Caves | 8R-AWN's Armor/EX stolen by Master Thief 6807 | -5/Upper Caves | Force Lance stolen by Master Thief 6808 | -5/Upper Caves | Spotted F1-6X0(f) 6809 | -5/Upper Caves | Encountered a Master Thief 6812 | -5/Upper Caves | Dirty Bomb Trap stolen by Master Thief 6832 | -5/Upper Caves | Discovered new exit (range 9) 6833 | -5/Upper Caves | Build established: Scavenger-Mutant 6841 | -5/Upper Caves | Identified exit to Factory 6880 | -5/Upper Caves | Learned 4 Factory zone layouts 6998 | -5/Upper Caves | Learned location of Warlord (-4) 7055 | -5/Upper Caves | P-70 Sage assimilated allied UP-8G0(g) 7063 | -5/Upper Caves | System corruption reached 10% 7082 | -5/Upper Caves | Core integrity fell below 20% 7175 | -5/Upper Caves | Lost 4 parts (1n3u) 7371 | -5/Upper Caves | Discovered new exit (range 5) 7378 | -5/Upper Caves | Identified exit to Zhirov 7379 | -5/Upper Caves | Entered Zhirov 7379 | -5/Zhirov | Discovered new exit (range 3) 7464 | -5/Zhirov | Learned location of Quarantine (-2) 7464 | -5/Zhirov | Learned location of Testing (-3) 7464 | -5/Zhirov | Learned location of Command (-1) 7510 | -5/Zhirov | Found Alien Artifact 7510 | -5/Zhirov | Identified Integrated Reactor 7510 | -5/Zhirov | Installed Integrated Reactor, increased core energy generation (+10) 7533 | -5/Zhirov | Found Alien Artifact 7651 | -5/Zhirov | Identified exit to Proximity Caves 7652 | -5/Zhirov | Entered Proximity Caves 7684 | -4/Proximity Caves | Identified Transdimensional Reconstructor 7684 | -4/Proximity Caves | Warped through subspace 7710 | -4/Proximity Caves | Lost 4 parts (1n3u) 7734 | -4/Proximity Caves | Learned location of Armory (-3) 7913 | -4/Proximity Caves | Destroyed by S-27 Virus with Autogun Last Messages --------------- 07678_ Critical hit (Burn: +37). 07679_ Gravmag System destroyed. 07679_ Imp. Thermal Shield destroyed. 07684_ Identified Transdimensional Reconstructor. 07684_ Warped through subspace. 07691_ System corrupted: Heat flow error (+260). 07704_ Acquired Imp. Light Armor Plating. 07710_ ICODVV VKDTQW0VRZSIPSURLFRWF7KAPQB34PEXZ 07728_ System corrupted: Energy discharge (-62). 07734_ Acquired derelict log, extracted data. World map updated: -3/Armory. 07745_ System corrupted: Energy discharge (-42). 07802_ System corrupted: Energy discharge (-44). 07818_ System corrupted: Matter fused (-7). 07866_ WBBTO,TJKOV0UB X#5GGXIT&%/:YHIB8 Z4A|1 07882_ System corrupted: Matter fused (-9). 07906_ Lance destroyed. 07908_ Mak. Sword follow-up attack on S-27 Virus. 07911_ Imp. Light Armor Plating destroyed. [Achievement: Collector] Map ----- +----------------------------------------------------+ | ?????????????????????????????????????????????????? | | ?????????????????????????????????????????????????? | | ?????????????????????????????????????????????????? | | ?????????????????????????????????????????????????? | | ?????????????????????????????????????????????????? | | ?????????????????????????????????????????????????? | | ?????????????????????????????????????????????????? | | ?????????????? ?????????????????????????????????? | | ???####?????? ????????????????????????????????? | | ??????# ????????????????????????????????? | | ??????????# "???????????????????????????????? | | ?????????????# "???????????????????????????????? | | ?????????????# ???????????????????????????????? | | ?????????????? ???????????????????????????????? | | #?????????????? ??????????????????????????????? | | ##?????##?????## #??????????????????????????????? | | #????## #### #?####?????????????????????????? | | ###??# ### ##????????????????????????? | | ##?# "%" ##???????????????????????? | | #????????### " ##??????????????????????? | | # #???????#### ## #??????????????????????? | | # #?????## ### #????????? #???????????? | | ## ####### ### #??????? #???????????? | | #?#### ### #????? #????????????? | | #???# #?## #??? #????????????? | | #?? ### #??# @## #????????????? | | #??# ????## ##?# s #?????????????????? | | #?????????## ## s ##?????????????????? | | ###??????## ! #### ss ##??????????????????? | | #?###### %! #??## s #???????????????????? | | ### ## ! #???## ## ???????????????????? | | ### #????# #? ??????????????????? | | ### #????# #?? ?????????????????? | | ## ##????# #?? ????????????????? | | ## #????? #??? ???????????????? | | # ### #### #????? #???? ??????????????? | | ### #?# ##??## #????? #???? ?????????????? | | ??# #?# #????# #????? ????? ?????????????? | | ??# #?####????# #????? ?????? ?????????????? | | ??# #??????#### ##??? ?????????????????????? | | ?? #??????# #???# ?????????????????????? | | ?? ??????# #???? ??????????????????????? | | ? ??????### #?????????????????????????????? | | ? ???????## #?????????????????????????????? | | ? ###????????#####?????????????????????????????? | | # #?????????????????????????????????????????????? | | ###??????????????????????????????????????????????? | | ?????????????????????????????????????????????????? | | ?????????????????????????????????????????????????? | | ?????????????????????????????????????????????????? | +----------------------------------------------------+ Best States ------------- Heat Dissipation 92 Energy Generation 41 Energy Capacity 340 Matter Stores 300 Matter Capacity 300 Sight Range 16 Terrain Scan Density 10 Power Amplification 30 Additional Mass Support 9 Armor Coverage 1750 Resistance: TH 25 Resistance: EX 90 Resistance: EM 90 Core Shielding 30 Power Shielding 66 Weapon Shielding 33 Evasion (%) 62 Melee Accuracy 6 Target Analysis 5 Core Analysis 6 Armor Integrity Analysis 30 Recoil Reduction 4 Matter Filtering 50 Salvage Targeting 4 Offensive Hacking 18 Item Schematics ----------------- Insulated Plating | -7/Factory | Hacked Force Lance | -5/Factory | Hacked Imp. Arc Thrower | -5/Zhirov | Free Exp. Heat Sink | -5/Zhirov | Free Exp. Optical Array | -5/Zhirov | Free Assault Drone Bay | -5/Zhirov | Free Robot Schematics ------------------ None Fabricated ------------ Insulated Plating | x2 | -6/Factory Force Lance | x1 | -5/Factory Alien Tech Used ----------------- Integrated Reactor Transdimensional Reconstructor Achievements -------------- Collector Challenges ------------ None Game ------ Seed TiamatAlloyElectrolaser Manual? 0 Play Time 01:44:04 Cumulative 138.9 hours Start 2021.07.03 @ 23:32:52 End 2021.07.04 @ 02:10:57 Sessions 1 Manual Loads 0 Difficulty Rogue Special Mode None Game No. 207 Rogue 207 Adventurer 0 Explorer 0 Win Type - Total 6 Types 5/0/0/1/0/0/0/0/0 Lore% 51 Gallery% 75 Achievement% 60 Wizard Run 0 Options --------- ASCII 0 Keyboard 0 Movement Mouse Keybinds 0 Fullscreen 1 Font 18/Terminus Map View 76x50 Tactical HUD 1 Map Filters NONE Filters NONE Steam 1 RUN: 5b7daf6d-bdc4-439a-8564-7c1e44dfeaa9